fUSD/lending_fUSD_20240617
["ID","MTS","AMOUNT","RATE_DAILY","PERIOD"]
[329705606,1718591458000,-330.525674,0.00027397,8]
[329705607,1718591458021,-500.0,0.00027397,8]
[329705608,1718591458033,-501.31215258,0.00027397,8]
[329705609,1718591458052,-510.10120493,0.00027397,8]
[329705610,1718591458066,-500.0,0.00027397,8]
[329705611,1718591458089,-500.0,0.00027397,8]
[329705612,1718591458104,-500.0,0.00027397,8]
[329705613,1718591458119,-508.34961103,0.00027397,8]
[329705614,1718591458153,-504.88845523,0.00027397,8]
[329705615,1718591458195,-500.0,0.00027397,8]
[329705616,1718591458207,-500.0,0.00027397,8]
[329705617,1718591458236,-521.13553571,0.00027397,8]
[329705618,1718591458254,-505.02654931,0.00027397,8]
[329705619,1718591458266,-5016.07922299,0.00027397,8]
[329705620,1718591458280,-500.0,0.00027397,8]
[329705621,1718591458322,-500.0,0.00027397,8]
[329705622,1718591458336,-500.0,0.00027397,8]
[329705623,1718591458350,-505.08223129,0.00027397,8]
[329705624,1718591458362,-500.0,0.00027397,8]
[329705625,1718591458397,-500.0,0.00027397,8]
[329705626,1718591458410,-500.0,0.00027397,8]
[329705627,1718591458435,-500.0,0.00027397,8]
[329705628,1718591458451,-160.32599855,0.00027397,8]
[329705629,1718591458471,-500.0,0.00027397,8]
[329705630,1718591458486,-510.10090458,0.00027397,8]
[329705631,1718591458504,-500.0,0.00027397,8]
[329705632,1718591458516,-500.0,0.00027397,8]
[329705633,1718591458529,-500.0,0.00027397,8]
[329705634,1718591458540,-500.0,0.00027397,8]
[329705635,1718591458553,-508.05484959,0.00027397,8]
[329705636,1718591458566,-503.39308183,0.00027397,8]
[329705637,1718591458578,-500.0,0.00027397,8]
[329705638,1718591458590,-500.0,0.00027397,8]
[329705639,1718591458603,-500.0,0.00027397,8]
[329705640,1718591458620,-500.0,0.00027397,8]
[329705641,1718591458635,-220.35839549,0.00027397,8]
[329705642,1718591458655,-500.0,0.00027397,8]
[329705643,1718591458679,-501.61215824,0.00027397,8]
[329705644,1718591458691,-500.0,0.00027397,8]
[329705645,1718591458707,-500.0,0.00027397,8]
[329705646,1718591458719,-500.0,0.00027397,8]
[329705647,1718591458749,-500.0,0.00027397,8]
[329705648,1718591458762,-500.0,0.00027397,8]
[329705649,1718591458778,-502.7886619,0.00027397,8]
[329705650,1718591458977,-500.0,0.00027397,8]
[329705651,1718591458997,-500.0,0.00027397,8]
[329705652,1718591459019,-500.0,0.00027397,8]
[329705653,1718591459037,-500.0,0.00027397,8]
[329705654,1718591459056,-500.0,0.00027397,8]
[329705655,1718591459068,-500.0,0.00027397,8]
[329705656,1718591459083,-507.98324824,0.00027397,8]
[329705657,1718591459094,-271.64808657,0.00027397,8]
[329705658,1718591459120,-500.0,0.00027397,8]
[329705659,1718591459132,-533.98325822,0.00027397,8]
[329705660,1718591459145,-276.91271446,0.00027397,8]
[329705661,1718591459161,-500.0,0.00027397,8]
[329705662,1718591459193,-500.0,0.00027397,8]
[329705663,1718591459205,-508.0764639,0.00027397,8]
[329705664,1718591459231,-192.66811377,0.00027397,8]
[329705665,1718591459254,-500.0,0.00027397,8]
[329705666,1718591459271,-500.0,0.00027397,8]
[329705667,1718591459288,-508.05031926,0.00027397,8]
[329705668,1718591459299,-500.0,0.00027397,8]
[329705669,1718591459311,-500.0,0.00027397,8]
[329705670,1718591459328,-500.0,0.00027397,8]
[329705671,1718591459349,-500.0,0.00027397,8]
[329705672,1718591459361,-509.0575489,0.00027397,8]
[329705673,1718591459379,-293.75881114,0.00027397,8]
[329705674,1718591459405,-500.0,0.00027397,8]
[329705675,1718591459433,-500.0,0.00027397,8]
[329705676,1718591459445,-500.0,0.00027397,8]
[329705677,1718591459457,-514.84627859,0.00027397,8]
[329705678,1718591459468,-500.0,0.00027397,8]
[329705679,1718591459483,-500.0,0.00027397,8]
[329705680,1718591459505,-500.0,0.00027397,8]
[329705681,1718591459519,-500.0,0.00027397,7]
[329705682,1718591459531,-500.0,0.00027397,8]
[329705683,1718591459542,-500.0,0.00027397,8]
[329705684,1718591459555,-514.25704715,0.00027397,7]
[329705685,1718591459566,-500.0,0.00027397,8]
[329705686,1718591459580,-500.0,0.00027397,8]
[329705687,1718591459592,-500.0,0.00027397,8]
[329705688,1718591459614,-512.2341112,0.00027397,8]
[329705689,1718591459643,-512.75054249,0.00027397,8]
[329705690,1718591459669,-502.31778457,0.00027397,8]
[329705691,1718591459679,-502.47577412,0.00027397,8]
[329705692,1718591459697,-500.0,0.00027397,8]
[329705693,1718591459711,-500.0,0.00027397,8]
[329705694,1718591459739,-500.0,0.00027397,8]
[329705695,1718591459750,-518.76482232,0.00027397,8]
[329705696,1718591459760,-500.0,0.00027397,8]
[329705697,1718591459771,-506.41669083,0.00027397,8]
[329705698,1718591459782,-502.63831466,0.00027397,8]
[329705699,1718591459792,-502.27020942,0.00027397,8]
[329705700,1718591459803,-500.0,0.00027397,8]
[329705701,1718591459814,-500.0,0.00027397,8]
[329705702,1718591459826,-500.0,0.00027397,8]
[329705703,1718591459840,-500.0,0.00027397,8]
[329705704,1718591459854,-500.0,0.00027397,8]
[329705705,1718591459866,-500.0,0.00027397,8]
[329705706,1718591459880,-500.64332369,0.00027397,8]
[329705707,1718591459891,-503.73118456,0.00027397,8]
[329705708,1718591459904,-500.0,0.00027397,8]
[329705709,1718591459915,-500.0,0.00027397,8]
[329705710,1718591459928,-500.0,0.00027397,8]
[329705711,1718591459940,-503.66652203,0.00027397,8]
[329705712,1718591459951,-506.79546589,0.00027397,8]
[329705713,1718591459969,-500.0,0.00027397,8]
[329705714,1718591459980,-500.0,0.00027397,8]
[329705715,1718591459990,-516.56238298,0.00027397,8]
[329705716,1718591460004,-500.0,0.00027397,8]
[329705717,1718591460015,-500.0,0.00027397,8]
[329705718,1718591460025,-500.0,0.00027397,8]
[329705719,1718591460040,-500.0,0.00027397,8]
[329705720,1718591460053,-518.66836347,0.00027397,8]
[329705721,1718591460063,-500.0,0.00027397,8]
[329705722,1718591460073,-500.0,0.00027397,8]
[329705723,1718591460085,-501.82225372,0.00027397,8]
[329705724,1718591460096,-500.0,0.00027397,8]
[329705725,1718591460120,-506.88062205,0.00027397,8]
[329705726,1718591460130,-500.0,0.00027397,8]
[329705727,1718591460140,-503.83073668,0.00027397,8]
[329705728,1718591460152,-500.0,0.00027397,8]
[329705729,1718591460174,-500.0,0.00027397,8]
[329705730,1718591460193,-199.8562611,0.00027397,8]
[329705731,1718591460213,-500.0,0.00027397,8]
[329705732,1718591460249,-500.0,0.00027397,8]
[329705733,1718591460282,-500.0,0.00027397,8]
[329705734,1718591460300,-500.0,0.00027397,8]
[329705735,1718591460314,-500.0,0.00027397,8]
[329705736,1718591460326,-500.0,0.00027397,8]
[329705737,1718591460345,-500.0,0.00027397,8]
[329705738,1718591460356,-500.0,0.00027397,8]
[329705739,1718591460368,-506.01090245,0.00027397,8]
[329705740,1718591460384,-500.0,0.00027397,8]
[329705741,1718591460402,-500.0,0.00027397,8]
[329705742,1718591460414,-500.0,0.00027397,8]
[329705743,1718591460425,-500.0,0.00027397,8]
[329705744,1718591460436,-500.0,0.00027397,8]
[329705745,1718591460449,-509.56022792,0.00027397,8]
[329705746,1718591460464,-500.0,0.00027397,8]
[329705747,1718591460478,-500.0,0.00027397,8]
[329705748,1718591460494,-500.0,0.00027397,8]
[329705749,1718591460509,-500.0,0.00027397,8]
[329705750,1718591460521,-500.0,0.00027397,8]
[329705751,1718591460532,-500.0,0.00027397,8]
[329705752,1718591460544,-500.0,0.00027397,8]
[329705753,1718591460560,-500.0,0.00027397,8]
[329705754,1718591460571,-500.0,0.00027397,8]
[329705755,1718591460593,-500.0,0.00027397,8]
[329705756,1718591460612,-512.66956901,0.00027397,8]
[329705757,1718591460629,-500.0,0.00027397,8]
[329705758,1718591460640,-500.0,0.00027397,8]
[329705759,1718591460652,-500.0,0.00027397,8]
[329705760,1718591460669,-500.0,0.00027397,8]
[329705761,1718591460694,-500.0,0.00027397,8]
[329705762,1718591460706,-500.0,0.00027397,8]
[329705763,1718591460720,-500.0,0.00027397,8]
[329705764,1718591460780,-500.0,0.00027397,8]
[329705765,1718591460794,-500.0,0.00027397,8]
[329705766,1718591460814,-500.0,0.00027397,8]
[329705767,1718591460825,-500.0,0.00027397,8]
[329705768,1718591460837,-500.0,0.00027397,8]
[329705769,1718591460859,-500.0,0.00027397,8]
[329705770,1718591460872,-359.8,0.00027397,8]
[329705771,1718591460883,-519.77053882,0.00027397,8]
[329705772,1718591460908,-186.08696103,0.00027397,8]
[329705773,1718591460929,-508.35267317,0.00027397,8]
[329705774,1718591460942,-502.27732706,0.00027397,8]
[329705775,1718591460956,-507.76451608,0.00027397,8]
[329705776,1718591460968,-500.0,0.00027397,8]
[329705777,1718591460979,-500.0,0.00027397,8]
[329705778,1718591460992,-500.0,0.00027397,8]
[329705779,1718591461005,-500.0,0.00027397,8]
[329705780,1718591461016,-500.0,0.00027397,8]
[329705781,1718591461043,-500.35857097,0.00027397,8]
[329705782,1718591461068,-500.0,0.00027397,8]
[329705783,1718591461084,-491.30026364,0.00027397,8]
[329705784,1718591461128,-500.0,0.00027397,8]
[329705785,1718591461139,-513.31242213,0.00027397,8]
[329705786,1718591461152,-500.0,0.00027397,8]
[329705787,1718591461168,-608.40631102,0.00027397,8]
[329705788,1718591461189,-505.30287156,0.00027397,8]
[329705789,1718591461207,-500.0,0.00027397,8]
[329705790,1718591461219,-500.0,0.00027397,8]
[329705791,1718591461248,-500.0,0.00027397,8]
[329705792,1718591461261,-500.0,0.00027397,8]
[329705793,1718591461273,-500.0,0.00027397,8]
[329705794,1718591461285,-511.1706722,0.00027397,8]
[329705795,1718591461310,-500.0,0.00027397,8]
[329705796,1718591461323,-500.0,0.00027397,8]
[329705797,1718591461334,-508.25431855,0.00027397,8]
[329705798,1718591461346,-500.0,0.00027397,8]
[329705799,1718591461362,-514.7669518,0.00027397,8]
[329705800,1718591461382,-504.12888999,0.00027397,8]
[329705801,1718591461411,-500.0,0.00027397,8]
[329705802,1718591461424,-500.0,0.00027397,8]
[329705803,1718591461460,-500.0,0.00027397,8]
[329705804,1718591461471,-500.0,0.00027397,8]
[329705805,1718591461487,-504.57904665,0.00027397,8]
[329705806,1718591461502,-500.0,0.00027397,8]
[329705807,1718591461515,-500.0,0.00027397,8]
[329705808,1718591461526,-500.0,0.00027397,8]
[329705809,1718591461544,-521.63324942,0.00027397,8]
[329705810,1718591461561,-500.0,0.00027397,8]
[329705811,1718591461572,-500.0,0.00027397,8]
[329705812,1718591461583,-500.0,0.00027397,8]
[329705813,1718591461594,-500.0,0.00027397,8]
[329705814,1718591461608,-501.71712642,0.00027397,8]
[329705815,1718591461619,-500.0,0.00027397,8]
[329705816,1718591461629,-500.0,0.00027397,8]
[329705817,1718591461641,-500.0,0.00027397,8]
[329705818,1718591461652,-500.0,0.00027397,8]
[329705819,1718591461682,-500.0,0.00027397,8]
[329705820,1718591461693,-500.0,0.00027397,8]
[329705821,1718591461704,-500.0,0.00027397,8]
[329705822,1718591461716,-500.0,0.00027397,8]
[329705823,1718591461735,-500.0,0.00027397,8]
[329705824,1718591461746,-500.0,0.00027397,8]
[329705825,1718591461760,-504.67136488,0.00027397,8]
[329705826,1718591461782,-227.9507023,0.00027397,8]
[329705827,1718591461796,-503.05052479,0.00027397,8]
[329705828,1718591461808,-500.0,0.00027397,8]
[329705829,1718591461820,-500.0,0.00027397,8]
[329705830,1718591461835,-500.0,0.00027397,8]
[329705831,1718591461848,-558.9838425,0.00027397,8]
[329705832,1718591461860,-500.0,0.00027397,8]
[329705833,1718591461871,-500.40504711,0.00027397,8]
[329705834,1718591461882,-500.0,0.00027397,8]
[329705835,1718591461893,-500.0,0.00027397,8]
[329705836,1718591461907,-500.0,0.00027397,8]
[329705837,1718591461918,-601.02676517,0.00027397,8]
[329705838,1718591461929,-500.0,0.00027397,8]
[329705839,1718591461939,-505.74979803,0.00027397,8]
[329705840,1718591461950,-500.0,0.00027397,8]
[329705841,1718591461965,-500.0,0.00027397,8]
[329705842,1718591461989,-500.0,0.00027397,8]
[329705843,1718591462010,-500.0,0.00027397,8]
[329705844,1718591462021,-501.24601726,0.00027397,8]
[329705845,1718591462032,-500.0,0.00027397,8]
[329705846,1718591462043,-500.0,0.00027397,8]
[329705847,1718591462055,-503.60089162,0.00027397,8]
[329705848,1718591462066,-500.0,0.00027397,8]
[329705849,1718591462079,-500.0,0.00027397,8]
[329705850,1718591462100,-500.0,0.00027397,8]
[329705851,1718591462118,-500.0,0.00027397,8]
[329705852,1718591462135,-500.0,0.00027397,8]
[329705853,1718591462161,-441.29866903,0.00027397,8]
[329705854,1718591462174,-500.0,0.00027397,8]
[329705855,1718591462188,-500.20623349,0.00027397,8]
[329705856,1718591462199,-500.0,0.00027397,8]
[329705857,1718591462210,-500.0,0.00027397,8]
[329705858,1718591462240,-513.03628618,0.00027397,8]
[329705859,1718591462262,-500.0,0.00027397,8]
[329705860,1718591462288,-510.10915475,0.00027397,8]
[329705861,1718591462302,-500.0,0.00027397,8]
[329705862,1718591462315,-500.0,0.00027397,8]
[329705863,1718591462328,-500.0,0.00027397,8]
[329705864,1718591462339,-508.59733414,0.00027397,8]
[329705865,1718591462351,-500.0,0.00027397,8]
[329705866,1718591462364,-500.0,0.00027397,8]
[329705867,1718591462376,-500.0,0.00027397,8]
[329705868,1718591462387,-525.41238158,0.00027397,8]
[329705869,1718591462401,-500.0,0.00027397,8]
[329705870,1718591462412,-485.5111584,0.00027397,8]
[329705871,1718591462427,-500.0,0.00027397,8]
[329705872,1718591462438,-500.0,0.00027397,8]
[329705873,1718591462449,-500.0,0.00027397,8]
[329705874,1718591462463,-500.0,0.00027397,8]
[329705875,1718591462474,-500.0,0.00027397,8]
[329705876,1718591462490,-500.0,0.00027397,8]
[329705877,1718591462503,-500.0,0.00027397,8]
[329705878,1718591462522,-500.0,0.00027397,8]
[329705879,1718591462536,-500.0,0.00027397,8]
[329705880,1718591462551,-500.0,0.00027397,8]
[329705881,1718591462564,-389.36297713,0.00027397,8]
[329705882,1718591462577,-500.0,0.00027397,8]
[329705883,1718591462593,-500.0,0.00027397,8]
[329705884,1718591462614,-500.0,0.00027397,8]
[329705885,1718591462625,-153.446974,0.00027397,7]
[329705886,1718591462638,-641.35356932,0.00027397,8]
[329705887,1718591462654,-500.0,0.00027397,8]
[329705888,1718591462732,-508.65267881,0.00027397,8]
[329705889,1718591462745,-500.0,0.00027397,8]
[329705890,1718591462769,-500.0,0.00027397,8]
[329705891,1718591462805,-391.11269568,0.00027397,8]
[329705892,1718591462823,-535.55055696,0.00027397,8]
[329705893,1718591462837,-500.0,0.00027397,8]
[329705894,1718591462851,-500.0,0.00027397,8]
[329705895,1718591462866,-500.0,0.00027397,8]
[329705896,1718591462885,-500.0,0.00027397,8]
[329705897,1718591462901,-530.26721056,0.00027397,8]
[329705898,1718591462912,-498.13510023,0.00027397,8]
[329705899,1718591462939,-500.0,0.00027397,8]
[329705900,1718591462960,-634.13941826,0.00027397,8]
[329705901,1718591462971,-500.0,0.00027397,8]
[329705902,1718591462993,-504.8554442,0.00027397,8]
[329705903,1718591463004,-300.6527424,0.00027397,8]
[329705904,1718591463018,-500.0,0.00027397,8]
[329705905,1718591463041,-519.05656885,0.00027397,8]
[329705906,1718591463052,-500.0,0.00027397,8]
[329705907,1718591463064,-500.0,0.00027397,8]
[329705908,1718591463075,-500.0,0.00027397,8]
[329705909,1718591463093,-500.0,0.00027397,8]
[329705910,1718591463105,-500.0,0.00027397,8]
[329705911,1718591463134,-509.06970258,0.00027397,8]
[329705912,1718591463157,-503.0365223,0.00027397,8]
[329705913,1718591463180,-499.36561477,0.00027397,8]
[329705914,1718591463222,-528.63158505,0.00027397,8]
[329705915,1718591463246,-501.67021522,0.00027397,8]
[329705916,1718591463264,-500.0,0.00027397,8]
[329705917,1718591463296,-500.0,0.00027397,8]
[329705918,1718591463325,-521.65633481,0.00027397,8]
[329705919,1718591463343,-500.0,0.00027397,8]
[329705920,1718591463356,-503.12849277,0.00027397,8]
[329705921,1718591463373,-504.45046034,0.00027397,8]
[329705922,1718591463385,-500.0,0.00027397,8]
[329705923,1718591463396,-500.0,0.00027397,8]
[329705924,1718591463424,-500.0,0.00027397,8]
[329705925,1718591463437,-542.1328926,0.00027397,8]
[329705926,1718591463451,-500.0,0.00027397,8]
[329705927,1718591463472,-500.0,0.00027397,8]
[329705928,1718591463496,-500.0,0.00027397,8]
[329705929,1718591463511,-500.0,0.00027397,8]
[329705930,1718591463529,-537.10503297,0.00027397,8]
[329705931,1718591463549,-500.0,0.00027397,8]
[329705932,1718591463561,-500.0,0.00027397,8]
[329705933,1718591463573,-500.0,0.00027397,8]
[329705934,1718591463587,-500.0,0.00027397,8]
[329705935,1718591463603,-500.0,0.00027397,8]
[329705936,1718591463636,-500.0,0.00027397,8]
[329705937,1718591463648,-503.36883683,0.00027397,8]
[329705938,1718591463659,-524.05476116,0.00027397,8]
[329705939,1718591463680,-503.53797858,0.00027397,8]
[329705940,1718591463707,-521.22240542,0.00027397,8]
[329705941,1718591463719,-545.61754227,0.00027397,8]
[329705942,1718591463749,-500.0,0.00027397,8]
[329705943,1718591463760,-505.57126004,0.00027397,8]
[329705944,1718591463775,-500.0,0.00027397,8]
[329705945,1718591463805,-512.76021554,0.00027397,8]
[329705946,1718591463817,-500.0,0.00027397,8]
[329705947,1718591463829,-513.02571604,0.00027397,8]
[329705948,1718591463839,-430.35821927,0.00027397,8]
[329705949,1718591463850,-501.65357736,0.00027397,8]
[329705950,1718591463861,-500.0,0.00027397,30]
[329705951,1718591463876,-500.0,0.00027397,30]
[329705952,1718591463895,-518.92307504,0.00027397,8]
[329705953,1718591463921,-500.0,0.00027397,30]
[329705954,1718591463947,-504.15349771,0.00027397,8]
[329705955,1718591463968,-500.0,0.00027397,30]
[329705956,1718591464008,-506.40490147,0.00027397,8]
[329705957,1718591464027,-500.0,0.00027397,30]
[329705958,1718591464059,-500.0,0.00027397,30]
[329705959,1718591464081,-289.253067,0.00027397,7]
[329705960,1718591464097,-214.82639953,0.00027397,30]
[329705961,1718591464112,-500.0,0.00027397,8]
[329705962,1718591464124,-500.00435153,0.00027397,8]
[329705963,1718591464143,-500.0,0.00027397,8]
[329705964,1718591464174,-500.0,0.00027397,8]
[329705965,1718591464186,-500.0,0.00027397,8]
[329705966,1718591464221,-500.0,0.00027397,8]
[329705967,1718591464243,-505.35732634,0.00027397,8]
[329705968,1718591464267,-500.0,0.00027397,8]
[329705969,1718591464293,-529.98729809,0.00027397,8]
[329705970,1718591464312,-507.68246001,0.00027397,8]
[329705971,1718591464365,-502.81110933,0.00027397,8]
[329705972,1718591464390,-504.94269342,0.00027397,8]
[329705973,1718591464416,-500.0,0.00027397,8]
[329705974,1718591464441,-500.52033518,0.00027397,8]
[329705975,1718591464455,-506.47429432,0.00027397,8]
[329705976,1718591464477,-500.0,0.00027397,8]
[329705977,1718591464503,-500.0,0.00027397,8]
[329705978,1718591464526,-500.0,0.00027397,8]
[329705979,1718591464546,-500.0,0.00027397,8]
[329705980,1718591464571,-500.0,0.00027397,8]
[329705981,1718591464584,-500.0,0.00027397,8]
[329705982,1718591464597,-500.0,0.00027397,8]
[329705983,1718591464609,-500.0,0.00027397,8]
[329705984,1718591464623,-500.0,0.00027397,8]
[329705985,1718591464641,-500.0,0.00027397,8]
[329705986,1718591464675,-500.0,0.00027397,8]
[329705987,1718591464712,-500.0,0.00027397,8]
[329705988,1718591464724,-622.11813075,0.00027397,8]
[329705989,1718591464749,-174.12933752,0.00027397,8]
[329705990,1718591464772,-498.65608874,0.00027397,8]
[329705991,1718591464789,-504.40718246,0.00027397,8]
[329705992,1718591464805,-500.0,0.00027397,8]
[329705993,1718591464850,-500.0,0.00027397,8]
[329705994,1718591464873,-500.0,0.00027397,8]
[329705995,1718591464885,-500.0,0.00027397,8]
[329705996,1718591464899,-500.0,0.00027397,8]
[329705997,1718591464915,-500.0,0.00027397,8]
[329705998,1718591464933,-508.35553371,0.00027397,8]
[329705999,1718591465003,-500.0,0.00027397,8]
[329706000,1718591465024,-503.67131697,0.00027397,8]
[329706001,1718591465042,-514.36542188,0.00027397,8]
[329706002,1718591465061,-521.10765956,0.00027397,8]
[329706003,1718591465079,-541.90762383,0.00027397,8]
[329706004,1718591465092,-502.66038978,0.00027397,8]
[329706005,1718591465105,-504.09536671,0.00027397,8]
[329706006,1718591465156,-506.88278098,0.00027397,8]
[329706007,1718591465176,-500.0,0.00027397,8]
[329706008,1718591465188,-500.0,0.00027397,8]
[329706009,1718591465203,-500.0,0.00027397,8]
[329706010,1718591465218,-500.0,0.00027397,8]
[329706011,1718591465237,-500.0,0.00027397,8]
[329706012,1718591465258,-507.54683448,0.00027397,8]
[329706013,1718591465271,-500.0,0.00027397,8]
[329706014,1718591465282,-519.12044523,0.00027397,8]
[329706015,1718591465298,-510.92008283,0.00027397,8]
[329706016,1718591465310,-505.3732143,0.00027397,8]
[329706017,1718591465321,-538.73671415,0.00027397,8]
[329706018,1718591465355,-500.0,0.00027397,8]
[329706019,1718591465368,-500.0,0.00027397,8]
[329706020,1718591465380,-500.0,0.00027397,8]
[329706021,1718591465392,-500.0,0.00027397,8]
[329706022,1718591465409,-500.0,0.00027397,8]
[329706023,1718591465423,-509.36615028,0.00027397,8]
[329706024,1718591465435,-589.45994124,0.00027397,8]
[329706025,1718591465448,-500.0,0.00027397,8]
[329706026,1718591465465,-500.0,0.00027397,8]
[329706027,1718591465508,-500.0,0.00027397,8]
[329706028,1718591465519,-500.0,0.00027397,8]
[329706029,1718591465532,-500.0,0.00027397,8]
[329706030,1718591465555,-500.0,0.00027397,8]
[329706031,1718591465581,-503.09848033,0.00027397,8]
[329706032,1718591465607,-500.0,0.00027397,8]
[329706033,1718591465619,-500.0,0.00027397,8]
[329706034,1718591465631,-500.0,0.00027397,8]
[329706035,1718591465663,-500.0,0.00027397,8]
[329706036,1718591465700,-500.0,0.00027397,8]
[329706037,1718591465718,-500.0,0.00027397,8]
[329706038,1718591465736,-500.0,0.00027397,8]
[329706039,1718591465747,-500.0,0.00027397,8]
[329706040,1718591465778,-622.01791358,0.00027397,8]
[329706041,1718591465794,-406.12288861,0.00027397,8]
[329706042,1718591465812,-222.02054724,0.00027397,8]
[329706043,1718591465828,-507.01330937,0.00027397,8]
[329706044,1718591465848,-500.0,0.00027397,8]
[329706045,1718591465867,-492.85390607,0.00027397,8]
[329706046,1718591465878,-507.07523325,0.00027397,8]
[329706047,1718591465896,-508.94736722,0.00027397,8]
[329706048,1718591465909,-529.47719244,0.00027397,8]
[329706049,1718591465921,-514.68395266,0.00027397,8]
[329706050,1718591465941,-500.0,0.00027397,8]
[329706051,1718591465958,-500.0,0.00027397,8]
[329706052,1718591465972,-500.0,0.00027397,8]
[329706053,1718591465992,-156.708107,0.00027397,7]
[329706054,1718591466006,-500.0,0.00027397,8]
[329706055,1718591466021,-500.0,0.00027397,8]
[329706056,1718591466041,-500.0,0.00027397,8]
[329706057,1718591466056,-500.0,0.00027397,8]
[329706058,1718591466093,-500.0,0.00027397,8]
[329706059,1718591466120,-512.10542387,0.00027397,8]
[329706060,1718591466135,-500.0,0.00027397,8]
[329706061,1718591466167,-500.0,0.00027397,8]
[329706062,1718591466201,-500.0,0.00027397,8]
[329706063,1718591466234,-500.0,0.00027397,8]
[329706064,1718591466250,-500.0,0.00027397,8]
[329706065,1718591466264,-500.0,0.00027397,8]
[329706066,1718591466282,-500.0,0.00027397,8]
[329706067,1718591466297,-500.0,0.00027397,8]
[329706068,1718591466313,-322.83849366,0.00027397,8]
[329706069,1718591466356,-500.0,0.00027397,8]
[329706070,1718591466372,-500.0,0.00027397,8]
[329706071,1718591466386,-500.0,0.00027397,8]
[329706072,1718591466413,-385.8704972,0.00027397,8]
[329706073,1718591466438,-500.0,0.00027397,8]
[329706074,1718591466456,-516.11218973,0.00027397,8]
[329706075,1718591466478,-500.0,0.00027397,8]
[329706076,1718591466495,-500.0,0.00027397,8]
[329706077,1718591466510,-500.0,0.00027397,8]
[329706078,1718591466526,-511.72681094,0.00027397,8]
[329706079,1718591466559,-500.0,0.00027397,8]
[329706080,1718591466585,-500.0,0.00027397,8]
[329706081,1718591466607,-500.0,0.00027397,8]
[329706082,1718591466622,-500.0,0.00027397,8]
[329706083,1718591466637,-500.0,0.00027397,8]
[329706084,1718591466668,-500.0,0.00027397,8]
[329706085,1718591466700,-500.0,0.00027397,8]
[329706086,1718591466712,-506.80011623,0.00027397,8]
[329706087,1718591466723,-500.0,0.00027397,8]
[329706088,1718591466744,-500.0,0.00027397,8]
[329706089,1718591466757,-500.0,0.00027397,8]
[329706090,1718591466774,-506.05399631,0.00027397,8]
[329706091,1718591466798,-500.0,0.00027397,8]
[329706092,1718591466825,-500.0,0.00027397,8]
[329706093,1718591466843,-510.46773099,0.00027397,8]
[329706094,1718591466855,-500.0,0.00027397,8]
[329706095,1718591466869,-500.0,0.00027397,8]
[329706096,1718591466882,-500.0,0.00027397,8]
[329706097,1718591466896,-500.0,0.00027397,8]
[329706098,1718591466914,-500.0,0.00027397,8]
[329706099,1718591466933,-500.0,0.00027397,8]
[329706100,1718591466958,-500.0,0.00027397,8]
[329706101,1718591466986,-500.0,0.00027397,8]
[329706102,1718591466998,-500.0,0.00027397,8]
[329706103,1718591467010,-510.72499411,0.00027397,8]
[329706104,1718591467023,-506.96519258,0.00027397,8]
[329706105,1718591467035,-500.0,0.00027397,8]